Cogmind - Beta 12 @@@ ROGUE MODE // 2023.09.22 @ 21:21:22 Player: Rohain Result: Self-destructed Performance ------------- Evolutions (1) 500 Regions Visited (3) 600 Robots Destroyed (9) 45 Value Destroyed (243) 243 Prototype IDs (1) 20 Alien Tech Used (0) 0 Bonus (0) 0 TOTAL SCORE: 1408 Bonus ------- None Cogmind --------- Core Integrity 266/400 Matter 300/300 Energy 280/280 System Corruption 0% Temperature Cool (0) Movement Core (250) Ox4 Location -9/Materials Parts ------- > --- POWER (1) -------- Cooled Ion Engine > --- PROPULSION (4) --- (None) > --- UTILITY (2) ------ Heat Sink Small Storage Unit > --- WEAPON (2) ------- (None) > --- INVENTORY (8) ---- Ion Engine Ion Engine Light Ion Engine Medium Laser Beam Rifle Particle Gun Peak State ------------ > --- POWER ------------ Cooled Ion Engine > --- PROPULSION ------- Aluminum Leg Aluminum Leg > --- UTILITY ---------- Heat Sink Small Storage Unit > --- WEAPON ----------- Particle Gun Particle Gun > --- INVENTORY -------- Ion Engine Ion Engine Light Ion Engine Heat Sink Medium Laser Particle Gun [Rating: 11] Favorites ----------- Power Ion Engine Engine Ion Engine Propulsion Aluminum Leg Leg Aluminum Leg Utility Small Storage Unit Device Heat Sink Storage Small Storage Unit Weapon Particle Gun Energy Gun Particle Gun Ballistic Gun Assault Rifle Build | -11 -10 -10 -9 ------- Run | Jun Mat Min Mat Slots Evolved 2 | . . . 2 Power . | . . . . Propulsion 2 | . . . 2 Utility . | . . . . Weapon . | . . . . Parts Attached 16 | 6 6 2 2 Power 2 | 1 . . 1 Engine 2 | 1 . . 1 Core . | . . . . Reactor . | . . . . Propulsion 4 | 2 2 . . Treads . | . . . . Leg 4 | 2 2 . . Wheel . | . . . . Hover . | . . . . Flight . | . . . . Utility 4 | 1 1 1 1 Device 3 | . 1 1 1 Storage 1 | 1 . . . Processor . | . . . . Hackware . | . . . . Protection . | . . . . Artifact . | . . . . Weapon 6 | 2 3 1 . Energy Gun 5 | 1 3 1 . Energy Cannon . | . . . . Ballistic Gun 1 | 1 . . . Ballistic Cannon . | . . . . Launcher . | . . . . Special Weapon . | . . . . Impact Weapon . | . . . . Slashing Weapon . | . . . . Piercing Weapon . | . . . . Special Melee Weapon . | . . . . Unidentified Prototypes 1 | . . . 1 Parts Lost 6 | . . 1 5 Power . | . . . . Propulsion 2 | . . . 2 Utility 1 | . . . 1 Weapon 3 | . . 1 2 Highest Loss Streak 3 | . . 1 3 To Critical Strikes 1 | . . . 1 Average Slot Usage (%) 82 | . 86 99 60 Engine 13 | . 14 14 11 Leg 21 | . 26 28 11 Device 8 | . 2 14 6 Storage 13 | . 14 14 11 Energy Gun 23 | . 22 27 20 Ballistic Gun 1 | . 5 . . Naked Turns . | . . . . Heaviest Build 20 | 14 17 17 20 Greatest Support 20 | 20 20 20 20 Greatest Overweight (x) 6 | . 5 . 6 Average Overweight (x) . | . . . . Largest Inventory Capacity 8 | 8 8 8 8 Average Capacity 7 | 7 8 8 8 Most Carried 7 | 2 5 6 7 Average Carried 4 | . 2 5 6 Final Capacity 8 | 8 8 8 8 Final Carried 6 | 1 5 5 6 Class Distribution -------------------- 100% | Mutant Dominant Class ---------------- Mutant | -10/Materials Mutant | -10/Mines Mutant | -9/Materials Resources | -11 -10 -10 -9 ----------- Run | Jun Mat Min Mat Matter Collected 335 | 145 . 117 73 Remotely . | . . . . Salvage Created 270 | . . 96 174 Parts 15 | . . . 15 Haulers Intercepted . | . . . . Recyclers Shooed 2 | . . . 2 Parts Field Recycled . | . . . . Retrieved Matter . | . . . . Parts Self-Destructed . | . . . . Prevented . | . . . . Kills | -11 -10 -10 -9 ------- Run | Jun Mat Min Mat Combat Hostiles Destroyed 9 | . . 2 7 Guns 9 | . . 2 7 Classes Destroyed 3 | . . 1 2 Swarmer 4 | . . . 4 Grunt 2 | . . . 2 Sentry 3 | . . 2 1 Best Kill Streak 4 | . . 2 4 Combat Bots Only 4 | . . 2 4 Max Kills in Single Turn 1 | . . 1 1 Gunslinging . | . . . . Exploded . | . . . . Melee . | . . . . Uniques/NPCs Destroyed . | . . . . Combat | -11 -10 -10 -9 -------- Run | Jun Mat Min Mat Damage Taken 674 | . 13 263 398 Core 162 | . . 28 134 Absorbed by Shields . | . . . . Core Remaining (%) 94 | 100 . 88 . Volleys Fired 39 | . . 9 30 Largest 2 | . . 2 2 Hottest 130 | . . 130 130 Shots Fired 61 | . . 14 47 Gun 61 | . . 14 47 Cannon . | . . . . Launcher . | . . . . Special . | . . . . Kinetic . | . . . . Thermal 61 | . . 14 47 Explosive . | . . . . Electromagnetic . | . . . . Robot Hit Streak 14 | . . 12 14 Robot Miss Streak 4 | . . 1 4 Penetration Max . | . . . . Secondary Targets . | . . . . Shots Hit Robots 43 | . . 13 30 Core Hits 14 | . . 4 10 Critical Kills . | . . . . Critical Parts Destroyed . | . . . . Critical Strikes 4 | . . 1 3 Burn 4 | . . 1 3 Melee Attacks . | . . . . Impact . | . . . . Slashing . | . . . . Piercing . | . . . . Sneak Attacks . | . . . . Combat Hostiles . | . . . . Follow-up Attacks . | . . . . Damage Inflicted 694 | . . 194 500 Guns 694 | . . 194 500 Cannons . | . . . . Explosions . | . . . . Melee . | . . . . Ramming . | . . . . Kinetic . | . . . . Thermal 694 | . . 194 500 Explosive . | . . . . Electromagnetic . | . . . . Impact . | . . . . Slashing . | . . . . Piercing . | . . . . Highest Corruption . | . . . . Average Corruption . | . . . . Corruption Purged . | . . . . Corruption Blocked . | . . . . Overload Shots . | . . . . Overflow Damage . | . . . . Projectiles . | . . . . Explosions . | . . . . Melee . | . . . . Knockbacks . | . . . . Impact . | . . . . Kinetic . | . . . . Secondary . | . . . . Self-Inflicted Damage . | . . . . Shots . | . . . . Rammed . | . . . . Targets Rammed . | . . . . Kicked . | . . . . Crushed . | . . . . Highest Temperature 396 | . . 275 396 Average Temperature 143 | . . 168 134 Received Heat Transfer 123 | . . 81 42 Effects 2 | . . 1 1 Energy Bleed 1 | . . 1 . Damage (minor) 1 | . . . 1 Siege Activations . | . . . . Robots Corrupted . | . . . . Combat Hostiles . | . . . . Parts Fried . | . . . . Impact Corruptions . | . . . . Robots Melted . | . . . . Combat Hostiles . | . . . . Parts Melted 7 | . . 4 3 Heat Transferred 1961 | . . 555 1406 Parts Sabotaged . | . . . . Parts Stolen . | . . . . Parts Stripped . | . . . . Power Chain Reactions . | . . . . Missiles Intercepted . | . . . . Alert | -11 -10 -10 -9 ------- Run | Jun Mat Min Mat Peak Influence 177 | . 64 69 177 Initial 26 | . . 24 26 Average 54 | . 36 41 98 Maximum Alert Level . | . . . . Low Security (%) 100 | 100 100 100 100 Level 1 . | . . . . Level 2 . | . . . . Level 3 . | . . . . Level 4 . | . . . . Level 5 . | . . . . High Security . | . . . . Max Security . | . . . . Squads Dispatched . | . . . . Investigation . | . . . . Extermination . | . . . . Reinforcement . | . . . . Assault . | . . . . Garrison . | . . . . Intercept . | . . . . Searches Triggered . | . . . . Construction Impeded . | . . . . Haulers Reinforced . | . . . . Active Scanning Responses . | . . . . Cargo Convoy Interrupts . | . . . . Stealth | -11 -10 -10 -9 --------- Run | Jun Mat Min Mat Distress Signals . | . . . . Communications Jammed . | . . . . Distress Signals . | . . . . Times Spotted 19 | . 7 2 10 Peak Tracking Total 5 | . 5 2 5 Tactical Retreats . | . . . . Traps | -11 -10 -10 -9 ------- Run | Jun Mat Min Mat Traps Triggered 1 | . 1 . . Indirectly . | . . . . Trap Hack Attempts . | . . . . Triggered . | . . . . Disarmed . | . . . . Reprogrammed . | . . . . Reused . | . . . . Traps Extracted . | . . . . Installed . | . . . . Triggered . | . . . . Machines | -11 -10 -10 -9 ---------- Run | Jun Mat Min Mat Machines Disabled . | . . . . Max in Single Turn . | . . . . Machines Repaired . | . . . . Machines Sabotaged . | . . . . Overloaded Fab Kills . | . . . . Hacking | -11 -10 -10 -9 --------- Run | Jun Mat Min Mat Machines Accessed 6 | . 5 . 1 Terminals 6 | . 5 . 1 Fabricators . | . . . . Repair Stations . | . . . . Recycling Units . | . . . . Scanalyzers . | . . . . Garrison Access . | . . . . Total Hacks 15 | . 13 . 2 Successful 7 | . 7 . . Failed 7 | . 5 . 2 Catastrophic . | . . . . Database Lockouts 1 | . 1 . . Manual 15 | . 13 . 2 Terminals 15 | . 13 . 2 Fabricators . | . . . . Repair Stations . | . . . . Recycling Units . | . . . . Scanalyzers . | . . . . Garrison Access . | . . . . Terminal Hacks 3 | . 3 . . Robot Analysis 2 | . 2 . . Zone Layout 1 | . 1 . . Fabricator Hacks . | . . . . Repair Station Hacks . | . . . . Recycling Unit Hacks . | . . . . Scanalyzer . | . . . . Garrison Access Hacks . | . . . . Unauthorized Hacks 4 | . 4 . . Terminals 4 | . 4 . . Botnet 4 | . 4 . . Fabricators . | . . . . Repair Stations . | . . . . Recycling Units . | . . . . Scanalyzers . | . . . . Garrison Access . | . . . . Data Cores Recovered . | . . . . Used . | . . . . Hacking Detections 4 | . 3 . 1 Full Trace Events . | . . . . Feedback Events . | . . . . Feedback Blocked . | . . . . Robot Schematics Acquired . | . . . . Robots Built . | . . . . Authchips . | . . . . Time . | . . . . Total Robot Build Rating . | . . . . Part Schematics Acquired . | . . . . Parts Built . | . . . . Authchips . | . . . . Time . | . . . . Total Part Build Rating . | . . . . Parts Repaired . | . . . . Time . | . . . . Parts Recycled . | . . . . Recycled Matter . | . . . . Retrieved Matter . | . . . . Retrieved Components . | . . . . Parts Scanalyzed . | . . . . Part Schematics Acquired . | . . . . Parts Damaged . | . . . . Bothacking | -11 -10 -10 -9 ------------ Run | Jun Mat Min Mat Used RIF Installer . | . . . . Robots Hacked . | . . . . Non-combat . | . . . . Combat . | . . . . Robot Hacks Applied . | . . . . Relay Couplers Released . | . . . . Fabnet Peak Effective % . | . . . . Robots Rewired . | . . . . Allies Hacked . | . . . . Hacks Repelled . | . . . . Allies | -11 -10 -10 -9 -------- Run | Jun Mat Min Mat Total Allies . | . . . . Largest Group . | . . . . Highest-Rated Group . | . . . . Highest-Rated Ally . | . . . . Total Orders . | . . . . Ally Attacks . | . . . . Total Damage . | . . . . Kills . | . . . . Allies Corrupted . | . . . . Allies Melted . | . . . . Intel | -11 -10 -10 -9 ------- Run | Jun Mat Min Mat Robot Analysis Total 2 | . 2 . . Derelict Logs Recovered 1 | . . 1 . Drone Launches . | . . . . Drone Recoveries . | . . . . Exploration | -11 -10 -10 -9 ------------- Run | Jun Mat Min Mat Turns Passed 848 | 68 191 327 262 Spaces Moved 532 | 49 147 242 94 Core 17 | 2 1 . 14 Treads . | . . . . Legs 515 | 47 146 242 80 Wheels . | . . . . Hover . | . . . . Flight . | . . . . Fastest Speed 50 | 50 120 120 120 Average Speed 125 | 117 122 120 151 Slowest Speed 350 | 120 300 120 350 Overloaded Moves . | . . . . Propulsion Burnouts . | . . . . Robots Hopped . | . . . . Cave-ins Triggered . | . . . . Exploration Rate (%) 28 | 5 33 61 13 Regions Visited 3 Branch Regions 1 Pre-discovered Areas 1 | . . 1 . Known Exits Taken . | . . . . Unknown Exits Taken 3 | 1 1 1 . Scrap Searched 1 | . . 1 . Spaces Dug . | . . . . Terrain Destroyed . | . . . . Melee . | . . . . Projectile . | . . . . AOE . | . . . . Terrain Rammed . | . . . . Walls Destroyed . | . . . . Machines Disabled . | . . . . Actions | -11 -10 -10 -9 --------- Run | Jun Mat Min Mat Total 644 | 57 156 264 167 Wait 49 | . . 11 38 Move 529 | 48 146 241 94 Hop . | . . . . Pick Up 9 | 3 3 1 2 Fast Attach 9 | 4 5 . . Attach 5 | 2 . 1 2 Detach 1 | . . . 1 Swap 2 | . 1 1 . Drop 1 | . 1 . . Fire 39 | . . 9 30 Melee . | . . . . Ram . | . . . . Kick . | . . . . Crush . | . . . . Escape Stasis . | . . . . Rewire . | . . . . Trap . | . . . . Miscellaneous . | . . . . Route ------- -11/Junkyard -10/Materials (discovered 2 exits: *Mat / [*Min]) -10/Mines -9/Materials (discovered 1 exit: [*Sto]) History --------- Turn | Location | Event 5 | -11/Junkyard | Discovered new exit (range 15) 69 | -11/Junkyard | Entered Materials 170 | -10/Materials | Central database locked down 178 | -10/Materials | Discovered new exit (range 16) 234 | -10/Materials | Discovered new exit (range 11) 260 | -10/Materials | Entered Mines 277 | -10/Mines | A weapon hastily lodged in a ceiling crevice suddenly fell to the ground 318 | -10/Mines | Build established: Mutant 351 | -10/Mines | Discovered new exit (range 11) 587 | -10/Mines | Entered Materials 587 | -9/Materials | Evolved 2 slots: Propulsion x2 675 | -9/Materials | Discovered new exit (range 6) 747 | -9/Materials | Lost 3 parts (2n1u) 849 | -9/Materials | Self-destructed Last Messages --------------- 00745_ K-01 Serf collects debris. 00746_ R-06 Scavenger collects Heat Sink. 00747_ R-06 Scavenger collects Hvy. Assault Rifle. 00749_ R-06 Scavenger collects Lgt. Treads. 00751_ K-01 Serf collects debris. 00762_ R-06 Scavenger collects Flight Unit. 00765_ K-01 Serf collects debris. 00783_ Acquired 51 matter. 00802_ G-34 Mercenary destroyed. 00806_ R-06 Scavenger collects Sml. Laser. 00808_ Particle Gun destroyed. 00810_ R-06 Scavenger collects Ion Engine. 00810_ G-34 Mercenary suffers critical hit (Burn). 00814_ G-34 Mercenary overheating. 00814_ Sml. Laser melted. 00814_ G-34 Mercenary destroyed. 00818_ Acquired 22 matter. 00822_ R-06 Scavenger collects Aluminum Leg. 00829_ R-06 Scavenger suffers critical hit (Burn). 00849_ Particle Gun destroyed. Map ----- +----------------------------------------------------+ | ?????????????????????????????????????????????????? | | ?????????????????????????????????????????????????? | | ?????????????????????????????????????????????????? | | ?????????????????????????????????????????????????? | | ?????????????????????????????????????????????????? | | ?????????????????????????????????????????????????? | | ?????????????????????????????????????????????????? | | ?????????????????????????????????????????????????? | | ?????????????????????????????????????????????????? | | ??????????????????????????? ???????????????????? | | ##????????????????????????? ??????????????????? | | #????????????????????????? ??????????????????? | | #????????????????????????? ??????????????????? | | #????????????????????????? #??????????????????? | | #???????????????????????## #??????????????????? | | #???????????????????????? /??????????????????? | | #???????????????????????? #??????????????????? | | #???????????????????????? #??????????????????? | | ????????????????????????? "#??????????????????? | | #######??????????????????? "%#??????????????????? | | #??????????????????? #??????????????????? | | ##### #???????????????????# #??????????????????? | | #???# ##################### #??????????????????? | | #???# + # #?????? #????????? | | #???############# %#%% # [ #????????? | | #???????????????# @l % + #????????? | | #???????????????# #% a# #????????? | | #???????????????#####+##### #??????###?????????? | | #???????????????????# #??? #?????????????????? | | #???????????????????# #??? #?????????????????? | | #???????????????????# #??? < #?????????????????? | | #####???????????????# #??? #?????????????????? | | #???????????????# #??# #?????????????????? | | #???????????????# #??### ###?????????????????? | | #???????????????# #????? #???????????????????? | | #???????????????# #????? +???????????????????? | | """ #???????????????? ?????? #???????????????????? | | """ #???????????????? ?????? #???????????????????? | | """ #???????????????? ?????? ????????????????????? | | #???????????????? ?????? ????????????????????? | | #####???????????????? ?????? ????????????????????? | | ????????????????????? ???????????????????????????? | | ????????????????????? ???????????????????????????? | | ?????????????????????????????????????????????????? | | ?????????????????????????????????????????????????? | | ?????????????????????????????????????????????????? | | ?????????????????????????????????????????????????? | | ?????????????????????????????????????????????????? | | ?????????????????????????????????????????????????? | | ?????????????????????????????????????????????????? | +----------------------------------------------------+ Best States ------------- Heat Dissipation 38 Energy Generation 14 Energy Capacity 280 Matter Stores 300 Matter Capacity 300 Sight Range 16 Terrain Scan Density 10 Evasion (%) 55 Item Schematics ----------------- None Robot Schematics ------------------ None Fabricated ------------ Nothing Alien Tech Used ----------------- None Achievements -------------- None Challenges ------------ None Game ------ Seed CoolingAngularBox Manual? 0 Play Time 00:08:25 Cumulative 49.2 hours Start 2023.09.22 @ 21:12:59 End 2023.09.22 @ 21:21:22 Sessions 1 Manual Loads 0 Difficulty Rogue Special Mode None Game No. 81 Rogue 65 Adventurer 16 Explorer 0 Win Type - Total 1 Types 1/0/0/0/0/0/0/0/0 Lore% 31 Gallery% 51 Achievement% 45 Wizard Run 0 Options --------- ASCII 0 Keyboard 0 Movement Mouse Keybinds 0 Fullscreen 1 Font 18/SmallcapsGlow Map View 76x50 Tactical HUD 1 Map Filters NONE Filters NONE Steam 1 RUN: b3289bae-0d61-409b-be25-bab1d85267fb